[Event "44th Chess Olympiad Women 2022"]
[Site "Chennai"]
[Date "2022.07.30"]
[Round "2.34"]
[White "Bedrosian, Danielle"]
[Black "Cramling Bellon, Anna"]
[Result "0-1"]
[ECO "A01"]
[WhiteElo "1662"]
[BlackElo "2065"]
[Annotator "TA"]
[PlyCount "48"]
[EventDate "2022.07.29"]
[EventType "team-tourn"]
[EventCountry "IND"]
[SourceTitle "playchess.com"]
[Source "ChessBase"]
[SourceQuality "1"]
[WhiteTeam "Lebanon"]
[BlackTeam "Sweden"]
[WhiteTeamCountry "LBN"]
[BlackTeamCountry "SWE"]
[TimeControl "40/5400+30:1800+30"]

{[%evp 9,48,-52,-47,-43,-32,-55,-49,-45,-43,-85,-75,-79,-83,-79,-81,-88,-83,-160,-146,-154,-146,-611,-581,-701,-690,-702,-708,-879,-875,-848,-811,-845,-818,-1152,-843,-827,-827,-6091,-1417,-1409,-1364]} 1. b3 {[%emt 0:00:23]} d5 {[%emt 0:00:12]} 2. Bb2 {[%emt 0:00:06]} Nf6 {[%emt 0:00:09]} 3. g3 {[%emt 0:02:31]} c5 {[%emt 0:00:19]} 4. Bg2 {[%emt 0:00:43]} Nc6 {[%emt 0:00:53]} 5. d3 {[%emt 0:00:30]} e5 {[%emt 0:00:38]} 6. e3 {[%emt 0:00:46] A01: Nimzowitsch-Larsen Opening.} Be7 {[%emt 0:00:24]} 7. Nd2 {[%emt 0:00:18]} Be6 {[%emt 0:00:24]} 8. Ne2 {[%emt 0:07:22] Black is slightly better.} d4 {[%emt 0:01:13]} 9. e4 {[%emt 0:00:47]} Qd7 {[%emt 0:00:36]} 10. h3 {[%emt 0:00:48]} O-O-O {[%emt 0:00:54] [#]} 11. f4 $146 {[%emt 0:32:41]} ({Predecessor:} 11. a3 Kb8 12. Nc1 Qc7 13. Qe2 h5 14. Na2 Nd7 15. O-O-O g6 16. Kb1 Nb6 17. Nc1 {0-1 (39) Bedrossian,D (1676)-Muhssen,F (1898) Beirut 2019}) 11... exf4 {[%emt 0:00:31] Black is more active.} 12. Nxf4 {[%emt 0:09:42]} Qc7 {[%emt 0:00:59]} 13. Nf3 {[%emt 0:09:56] [#]} ({Better is} 13. Qf3) 13... h6 $1 $17 {[%emt 0:14:14]} 14. Qd2 {[%emt 0:11:03]} c4 {[%emt 0:16:59]} 15. bxc4 $2 {[%emt 0:04:16][%mdl 8192] This costs White the game.} (15. Qf2 $17 Qa5+ 16. Kf1) 15... Bb4 $19 {[%emt 0:02:40] Black is clearly winning.} 16. c3 {[%emt 0:00:06]} dxc3 {[%emt 0:02:28]} 17. Bxc3 {[%emt 0:00:03]} Nxe4 {[%emt 0:00:29]} 18. dxe4 {[%emt 0:06:22]} Rxd2 {[%emt 0:00:11]} 19. Bxd2 {[%emt 0:00:24]} Bxd2+ {[%emt 0:03:51]} 20. Nxd2 {[%emt 0:00:16]} g5 {[%emt 0:00:59]} 21. Nh5 {[%emt 0:02:58]} Qa5 {[%emt 0:02:02]} 22. Nf6 {[%emt 0:02:39]} Qc3 {[%emt 0:01:48]} 23. Rd1 {[%emt 0:00:39]} Qxg3+ {[%emt 0:00:48]} (23... Bxc4 $142 24. Rc1 Qxc1+ 25. Kf2 Qxd2+ 26. Kg1 Qd4+ 27. Kh2 Qxf6) 24. Kf1 {[%emt 0:00:06]} Qf4+ {[%emt 0:00:06] Weighted Error Value: White=1.20/Black=0.56} 0-1

[Event "44th Chess Olympiad Women 2022"]
[Site "Chennai"]
[Date "2022.07.30"]
[Round "2.35"]
[White "Ryjanova, Julia"]
[Black "Zhang, Jasmine Haomo"]
[Result "1-0"]
[ECO "D37"]
[WhiteElo "2284"]
[BlackElo "1972"]
[Annotator "TA"]
[PlyCount "121"]
[EventDate "2022.07.29"]
[EventType "team-tourn"]
[EventCountry "IND"]
[SourceTitle "playchess.com"]
[Source "ChessBase"]
[SourceQuality "1"]
[WhiteTeam "Australia"]
[BlackTeam "New Zealand"]
[WhiteTeamCountry "AUS"]
[BlackTeamCountry "NZL"]
[TimeControl "40/5400+30:1800+30"]

{[%evp 18,121,17,6,8,1,37,0,0,0,0,-43,47,43,31,35,44,42,67,0,11,12,10,-31,-24,-31,-26,-28,-23,-35,-42,-83,-50,-66,-75,-75,-44,-43,0,0,0,0,0,0,0,-133,-4,0,0,0,8,0,8,8,16,16,17,17,84,84,84,84,84,84,84,46,39,8,8,8,8,8,8,8,33,33,33,33,102,94,568,251,29971,29972,29972,29973,29973,29974,29974,29975,29975,8,8,8,29977,29977,29978,29979,29979,29980,29982,29983,29984,29985,29985,29986]} 1. d4 {[%emt 0:00:04]} d5 {[%emt 0:00:05]} 2. c4 {[%emt 0:00:10]} e6 {[%emt 0:00:05]} 3. Nc3 {[%emt 0:00:06]} Be7 {[%emt 0:00:13]} 4. Nf3 {[%emt 0:06:59]} Nf6 {[%emt 0:00:05]} 5. e3 {[%emt 0:05:40]} O-O {[%emt 0:04:01]} 6. Bd3 {[%emt 0:03:43]} Nbd7 {[%emt 0:04:26]} 7. O-O {[%emt 0:02:32]} dxc4 {[%emt 0:11:30]} 8. Bxc4 {[%emt 0:02:32]} c5 {[%emt 0:00:24]} 9. Qe2 {[%emt 0:12:46]} a6 {[%emt 0:04:49]} 10. a4 {[%emt 0:03:31]} b6 {[%emt 0:04:44] D37: Queen's Gambit Declined: 5 Bf4.} 11. Rd1 {[%emt 0:07:35]} Qc7 {[%emt 0:02:50]} 12. e4 {[%emt 0:12:50]} cxd4 {[%emt 0:06:53] The position is equal.} 13. Nxd4 {[%emt 0:00:10]} Ne5 {[%emt 0:06:34] [#]} 14. Ba2 $146 {[%emt 0:02:11]} (14. Bf4 $5 {[%cal Rf4e5]}) ({Predecessor:} 14. Bf4 Bd6 15. Bb3 Re8 16. Ndb5 axb5 17. Nxb5 Ba6 18. Nxc7 Bxe2 19. Rxd6 Nd3 20. Nxa8 Rxa8 {1-0 (29) Tasan,M (2020)-Cil,H (1717) Antalya 2013}) 14... Nc6 {[%emt 0:00:36]} (14... Neg4 $1 $15 15. g3 Bc5) 15. Nxc6 {[%emt 0:06:15]} (15. e5 $5 Nxd4 16. Rxd4 $14) 15... Qxc6 {[%emt 0:00:14]} 16. Bg5 {[%emt 0:00:22]} Bb7 {[%emt 0:06:27][%cal Rf6e4]} 17. Rac1 {[%emt 0:01:31][%cal Oc3d5] Hoping for Nd5!} Qe8 $1 {[%emt 0:01:40]} 18. Bf4 {[%emt 0:05:36] White is more active.} (18. e5 $14 Nd7 19. Bxe7 Qxe7 20. Rd6) 18... Nd7 {[%emt 0:12:53]} 19. Bd6 {[%emt 0:04:08]} Nc5 {[%emt 0:03:10]} 20. b3 {[%emt 0:10:48]} Rd8 {[%emt 0:03:11]} 21. Bxe7 {[%emt 0:03:13]} Qxe7 {[%emt 0:00:10]} 22. b4 {[%emt 0:00:44]} Nd7 {[%emt 0:02:48]} 23. Rb1 {[%emt 0:02:52]} Rc8 {[%emt 0:01:39]} 24. Rdc1 {[%emt 0:01:06]} Rc7 {[%emt 0:02:49]} 25. Qe3 {[%emt 0:02:02]} Rfc8 {[%emt 0:00:23]} 26. f3 {[%emt 0:02:02]} g6 {[%emt 0:03:49]} 27. h3 {[%emt 0:00:30]} Qf6 {[%emt 0:00:51][%cal Rc7c3]} 28. Ne2 {[%emt 0:00:36]} Rxc1+ {[%emt 0:00:55]} 29. Rxc1 {[%emt 0:00:04]} Qb2 {[%emt 0:00:47]} 30. Rxc8+ {[%emt 0:00:16]} Bxc8 {[%emt 0:00:05]} 31. Qc3 {[%emt 0:00:27]} (31. Qc1 $11 Qxc1+ 32. Nxc1) 31... Qxc3 {[%emt 0:02:40]} (31... Qxe2 $17 32. Qxc8+ Nf8) 32. Nxc3 $17 {[%emt 0:00:04][%mdl 4096] Endgame KBN-KBN} Ne5 {[%emt 0:00:32]} 33. Bb1 {[%emt 0:00:58]} Kf8 {[%emt 0:00:58]} 34. Kf2 {[%emt 0:00:16]} Ke7 {[%emt 0:00:38]} 35. f4 {[%emt 0:00:50]} Nc6 {[%emt 0:01:20]} 36. b5 {[%emt 0:00:52]} axb5 {[%emt 0:00:03]} 37. axb5 {[%emt 0:00:14]} Nb4 {[%emt 0:00:55]} (37... Nb8 $11) 38. Ke3 $1 $16 {[%emt 0:00:58]} f5 {[%emt 0:00:52]} 39. Kd4 {[%emt 0:00:33] Threatens to win with Kc4.} fxe4 {[%emt 0:00:42]} 40. Bxe4 {[%emt 0:00:15] Strongly threatening Kc4.} Kd6 {[%emt 0:04:33]} 41. g4 {[%emt 0:31:23]} Bd7 {[%emt 0:30:45]} 42. Kc4 {[%emt 0:00:00]} Nd5 {[%emt 0:00:00]} 43. Bxd5 {[%emt 0:00:00]} exd5+ $11 {[%emt 0:00:00] KB-KN} 44. Kd4 {[%emt 0:00:00]} ({Not} 44. Nxd5 $2 Be6 45. Kd4 Bxd5 $19) 44... h6 {[%emt 0:00:00]} 45. Nxd5 {[%emt 0:00:00]} Bxb5 {[%emt 0:00:00]} 46. Nxb6 {[%emt 0:00:00]} Bf1 {[%emt 0:00:00]} 47. h4 {[%emt 0:00:00]} Bh3 {[%emt 0:00:00]} ({Better is} 47... Be2 $1 $14) 48. Nc4+ $16 {[%emt 0:00:00]} Ke6 $2 {[%emt 0:00:00][%mdl 8192]} (48... Ke7 $16 {is more resistant.}) 49. Ne3 $1 $18 {[%emt 0:00:04] aiming for Ke4.} Bxg4 $2 {[%emt 0:00:00]} (49... Kf6 $18 50. Kd5 Kg7) 50. Nxg4 {[%emt 0:00:09] KN-KPP} Kf5 {[%emt 0:00:00] [#]} 51. Ne5 $1 {[%emt 0:01:23]} Kxf4 {[%emt 0:00:00]} 52. Nxg6+ {[%emt 0:00:07] KN-KP} Kf5 {[%emt 0:00:00]} 53. Ne5 {[%emt 0:00:13]} Kf4 {[%emt 0:00:05]} 54. Kd5 {[%emt 0:00:18] Threatening mate with Ke6.} Kf5 $1 {[%emt 0:01:04]} 55. Kd6 {[%emt 0:00:21] Intending Kd5 and mate.} Kf6 $2 {[%emt 0:00:20][%mdl 8192]} (55... h5 $11 56. Kd5 Kf6 57. Ke4 Ke6 58. Nd3 Kf6 59. Nf4 Kf7 60. Kf5 Kf8) 56. Nd3 {[%emt 0:02:58] White mates.} Kf5 {[%emt 0:01:30] [#]} 57. Ne1 $1 {[%emt 0:01:09]} Kg4 {[%emt 0:01:25]} 58. Ng2 {[%emt 0:00:06]} Kg3 {[%emt 0:02:21] [#]} 59. Ke5 $1 {[%emt 0:00:22]} Kxg2 {[%emt 0:00:48]} (59... Kg4 60. Kf6) 60. Kf5 {[%emt 0:00:34]} Kf3 {[%emt 0:02:09]} 61. h5 {[%emt 0:00:54] Weighted Error Value: White=0.13 (very precise) /Black=0.53} 1-0

[Event "44th Chess Olympiad Women 2022"]
[Site "Chennai"]
[Date "2022.07.30"]
[Round "2.35"]
[White "Phan, Nguyen Mai Chi"]
[Black "Ning, Isabelle Yixuan"]
[Result "1-0"]
[ECO "E94"]
[WhiteElo "2139"]
[BlackElo "1853"]
[Annotator "TA"]
[PlyCount "109"]
[EventDate "2022.07.29"]
[EventType "team-tourn"]
[EventCountry "IND"]
[SourceTitle "playchess.com"]
[Source "ChessBase"]
[SourceQuality "1"]
[WhiteTeam "Australia"]
[BlackTeam "New Zealand"]
[WhiteTeamCountry "AUS"]
[BlackTeamCountry "NZL"]
[TimeControl "40/5400+30:1800+30"]

{[%evp 18,109,16,28,56,4,62,62,64,55,65,8,72,21,33,0,14,9,23,-22,-8,-17,-14,-23,17,0,0,-8,-12,-85,-15,-16,0,0,79,94,51,39,57,47,72,93,109,81,914,335,358,357,540,533,597,587,603,512,556,539,486,443,1633,1367,1579,1528,29975,29976,29975,622,29970,29971,29971,29972,29978,29979,29979,29980,29980,29981,29980,29982,29982,29983,29982,29983,29985,29986,29986,29986,29987,29986,29986,29987,29987,29988,29987,29987]} 1. d4 {[%emt 0:00:04]} Nf6 {[%emt 0:00:09]} 2. c4 {[%emt 0:00:13]} g6 {[%emt 0:00:08]} 3. Nc3 {[%emt 0:00:10]} Bg7 {[%emt 0:00:15]} 4. e4 {[%emt 0:00:10]} d6 {[%emt 0:00:06]} 5. Nf3 {[%emt 0:00:13][%cal Bg1f3,Bf3e1,Be1d3][%mdl 32]} O-O {[%emt 0:00:10]} 6. Be2 {[%emt 0:00:13]} Nbd7 {[%emt 0:00:12]} 7. O-O {[%emt 0:00:54]} e5 {[%emt 0:00:31]} 8. d5 {[%emt 0:01:13]} Nc5 {[%emt 0:01:39]} 9. Qc2 {[%emt 0:02:48]} a5 {[%emt 0:01:32]} 10. Ne1 {[%emt 0:04:09]} h6 {[%emt 0:09:57] E94: King's Indian: Classical: 6 Be2 e5 7 0-0: Various Black 7th moves.} 11. f3 {[%emt 0:06:59]} (11. Be3 $14) 11... Nh7 {[%emt 0:07:29]} (11... Nh5 $11) 12. Nd3 $14 {[%emt 0:04:42]} b6 {[%emt 0:02:55] [#] White is slightly better.} 13. Rb1 $146 {[%emt 0:05:44]} ({Predecessor:} 13. Be3 f5 14. Nxc5 bxc5 15. exf5 Bxf5 16. Bd3 Ng5 17. Ne4 Nxe4 18. Bxe4 Qh4 19. g3 {0-1 (41) Vizvari,L (1996)-Spacek,M (1818) Slovakia 2013}) 13... f5 {[%emt 0:02:35]} 14. a3 {[%emt 0:09:20]} ({White should play} 14. Nxc5 $14 bxc5 15. exf5 Bxf5 16. Bd3 (16. Ne4 Qh4 $14)) 14... f4 {[%emt 0:04:04]} (14... Nxd3 $11 15. Bxd3 (15. Qxd3 Qh4 $11) 15... f4) 15. b4 {[%emt 0:04:11]} (15. Nxc5 $16 {And now Nd3 would win.} bxc5 16. Bd2) 15... Nxd3 {[%emt 0:01:51]} 16. Bxd3 {[%emt 0:00:48][%cal Oc4c5]} g5 {[%emt 0:04:43]} 17. c5 {[%emt 0:04:16]} axb4 {[%emt 0:06:52]} 18. axb4 {[%emt 0:00:26]} (18. cxb6 $5 bxc3 19. b7 Bxb7 20. Rxb7 $14) 18... g4 {[%emt 0:04:49]} 19. fxg4 {[%emt 0:08:32]} Bxg4 {[%emt 0:01:39]} 20. Nb5 {[%emt 0:00:54]} f3 {[%emt 0:11:58]} 21. Be3 {[%emt 0:07:52]} Ng5 {[%emt 0:04:07]} 22. cxd6 {[%emt 0:04:53]} cxd6 {[%emt 0:06:03]} 23. Qd2 {[%emt 0:04:26]} (23. h4 $11 {remains equal.} Nf7 24. g3 (24. gxf3 Bh3 $15)) 23... Bf6 {[%emt 0:02:50]} (23... fxg2 $17 24. Rxf8+ Qxf8 25. Bxg5 hxg5 26. Qxg2 Qf4) 24. h4 $11 {[%emt 0:12:18][%cal Bh2h4,Bh4g5][%mdl 32]} fxg2 {[%emt 0:01:12]} 25. Qxg2 {[%emt 0:00:52]} Bh3 {[%emt 0:02:06] [#]} (25... Nh3+ $1 $11 {keeps the balance.} 26. Kh1 h5) 26. Qg3 $1 $16 {[%emt 0:01:45] White is much more active.} Bxf1 {[%emt 0:01:35]} 27. Rxf1 {[%emt 0:00:29][%cal Bb1f1,Bf1f5,Bf5g5][%mdl 32]} Kh7 {[%emt 0:07:12]} 28. hxg5 {[%emt 0:00:34]} Rg8 $1 {[%emt 0:00:14][%cal Rf6g5] [#]} 29. Rf5 {[%emt 0:03:03] Qh4 is the strong threat.} (29. Rxf6 Qxf6 30. gxf6 Rxg3+ 31. Kf2 Rh3 $11) (29. Nxd6 $2 Qxd6 30. Kh1 (30. Rxf6 $2 Qxf6 31. gxf6 Rxg3+ $19) 30... Ra3 $17) 29... Ra1+ {[%emt 0:04:44]} 30. Kf2 {[%emt 0:00:57][%cal Bg1f2,Bf2f3,Bf3e3][%mdl 32]} Be7 {[%emt 0:02:54][%mdl 8192] This costs Black the game.} (30... Bxg5 $16 31. Bxg5 (31. Rf7+ Rg7 $16) 31... Rxg5 32. Rxg5 hxg5) 31. Qh4 $2 {[%emt 0:05:19]} (31. Rf7+ Kh8 32. g6) 31... Ra2+ {[%emt 0:01:34]} 32. Kf3 {[%emt 0:02:20][%csl Ge3,Gg5][%cal Rh4h6]} Bxg5 {[%emt 0:01:26]} (32... Rg6 $142 33. Be2 (33. Nc3 Ra3 $11) 33... Bxg5 34. Bxg5 Rxg5 35. Rxg5 Qxg5 36. Qxg5 hxg5) 33. Bxg5 $18 {[%emt 0:00:28]} Rxg5 {[%emt 0:00:15]} 34. Rxg5 {[%emt 0:00:23][%cal Og5g7] Intending Rg7+! and mate.} Qf6+ {[%emt 0:00:39]} 35. Ke3 {[%emt 0:00:17]} Qxg5+ {[%emt 0:01:28]} 36. Qxg5 {[%emt 0:00:04]} hxg5 {[%emt 0:00:07]} 37. Nxd6 {[%emt 0:00:12]} g4 {[%emt 0:01:50]} (37... Kg7 $142 38. Nc4 Kf6 39. Nxb6 Ra7) 38. Nf5 {[%emt 0:01:11]} Kg6 {[%emt 0:01:12]} 39. d6 {[%emt 0:00:18] White wants to mate with d7.} Kg5 {[%emt 0:00:57]} 40. d7 {[%emt 0:01:33]} Ra8 {[%emt 0:00:10]} 41. Ba6 {[%emt 0:31:20]} Rh8 {[%emt 0:31:46]} 42. Ne7 {[%emt 0:02:34] White mates.} Rh3+ {[%emt 0:00:55]} 43. Kf2 {[%emt 0:00:26]} Rh2+ {[%emt 0:01:13]} 44. Kg1 {[%emt 0:00:23]} Rh8 {[%emt 0:00:39]} 45. Nc6 {[%emt 0:00:21]} Kf4 {[%emt 0:00:42]} 46. Bd3 {[%emt 0:01:15]} Ke3 {[%emt 0:01:25]} 47. Bb1 {[%emt 0:00:15]} Kd2 {[%emt 0:00:00]} 48. d8=Q+ {[%emt 0:00:00]} Rxd8 {[%emt 0:00:00]} 49. Nxd8 {[%emt 0:00:00]} Kc3 {[%emt 0:00:00]} 50. Nc6 {[%emt 0:00:00]} Kc4 {[%emt 0:00:00]} 51. Nxe5+ {[%emt 0:00:00]} Kxb4 {[%emt 0:00:00]} 52. Nxg4 {[%emt 0:00:00]} Kc5 {[%emt 0:00:00]} 53. e5 {[%emt 0:00:00]} Kc6 {[%emt 0:00:00]} 54. Kf2 {[%emt 0:00:00]} Kd5 {[%emt 0:00:24]} 55. Ke2 {[%emt 0:00:25] Weighted Error Value: White=0.34/Black=0.48} 1-0

[Event "44th Chess Olympiad Women 2022"]
[Site "Chennai"]
[Date "2022.07.30"]
[Round "2.35"]
[White "Punsalan, Vyanla M"]
[Black "Richards, Heather S"]
[Result "1-0"]
[ECO "B07"]
[WhiteElo "1895"]
[BlackElo "2146"]
[Annotator "TA"]
[PlyCount "87"]
[EventDate "2022.07.29"]
[EventType "team-tourn"]
[EventCountry "IND"]
[SourceTitle "playchess.com"]
[Source "ChessBase"]
[SourceQuality "1"]
[WhiteTeam "New Zealand"]
[BlackTeam "Australia"]
[WhiteTeamCountry "NZL"]
[BlackTeamCountry "AUS"]
[TimeControl "40/5400+30:1800+30"]

{[%evp 10,87,13,0,0,0,24,18,20,20,29,35,27,18,12,6,14,0,15,-38,3,-36,-40,-44,-64,-67,-59,-70,-62,-74,-81,-84,-65,-87,-41,-54,-60,-37,107,95,108,102,317,247,242,311,225,167,295,285,272,281,294,224,196,204,260,90,74,-11,155,154,150,163,156,144,301,319,248,268,372,59,166,109,29988,29988,29988,29989,29989,29990]} 1. e4 {[%emt 0:00:07]} d6 {[%emt 0:00:04]} 2. d4 {[%emt 0:00:39]} Nf6 {[%emt 0:00:04]} 3. Nd2 {[%emt 0:00:59]} e5 {[%emt 0:04:09]} 4. dxe5 {[%emt 0:03:51]} dxe5 {[%emt 0:00:09]} 5. Ngf3 {[%emt 0:00:16]} Bc5 {[%emt 0:07:58]} 6. Bc4 {[%emt 0:05:56]} Qe7 {[%emt 0:03:21] B07: Pirc Defence: Miscellaneous Systems.} 7. O-O {[%emt 0:03:46]} Bg4 {[%emt 0:03:53]} 8. c3 {[%emt 0:05:00]} O-O {[%emt 0:03:09] The position is equal.} 9. h3 {[%emt 0:03:08]} Bh5 {[%emt 0:00:27] [#]} 10. Re1 $146 {[%emt 0:05:42]} ({Predecessor:} 10. b4 Bb6 11. Bb2 Nbd7 12. Qe2 Rfd8 13. Bb3 c6 14. Nc4 Bc7 15. Bc2 Nf8 16. Kh2 {0-1 (42) Freire,M-Rocha,J Curitiba 1982}) 10... Nbd7 {[%emt 0:07:53]} 11. a4 {[%emt 0:07:01]} a5 {[%emt 0:01:36] Prevents b4.} 12. Rb1 {[%emt 0:01:41]} Rad8 {[%emt 0:01:46]} 13. Qc2 {[%emt 0:06:25]} Kh8 {[%emt 0:13:42]} 14. Ba2 {[%emt 0:07:53]} (14. Bf1 $11) 14... Bg6 {[%emt 0:07:36]} 15. Re2 {[%emt 0:11:54]} Nh5 {[%emt 0:02:42]} 16. Nf1 {[%emt 0:02:08] Prevents Ng3.} h6 {[%emt 0:02:00]} 17. g4 {[%emt 0:08:26]} Nf4 $1 {[%emt 0:01:40]} 18. Bxf4 {[%emt 0:00:35]} exf4 {[%emt 0:00:04]} 19. Rbe1 {[%emt 0:02:04]} Ne5 {[%emt 0:05:40]} 20. Nxe5 {[%emt 0:04:38]} Qxe5 {[%emt 0:00:07]} 21. Kg2 {[%emt 0:01:12]} h5 {[%emt 0:04:24]} ({Much worse is} 21... f3+ $6 22. Kxf3 Qg5 23. Kg2 $11) ({Black should play} 21... Qf6 $1 $17 {Strongly threatening ...f3+.} 22. Nh2 Rfe8) 22. Nh2 $15 {[%emt 0:01:59]} hxg4 {[%emt 0:01:15]} 23. hxg4 {[%emt 0:02:22]} f3+ {[%emt 0:08:32]} (23... Qg5 $15 {keeps the upper hand.} 24. Rh1 Kg8) 24. Nxf3 $16 {[%emt 0:01:23]} Qf4 {[%emt 0:00:32]} 25. Rh1+ {[%emt 0:01:40][%cal Be1h1,Bh1h4,Bh4f4][%mdl 32]} Kg8 $2 {[%emt 0:00:21]} (25... Bh7 $16 {is a better defense.} 26. e5 Qxg4+ 27. Kf1 g6) 26. Rh4 $18 {[%emt 0:01:36]} Rfe8 {[%emt 0:03:58][%cal Re8e4]} 27. g5 {[%emt 0:02:50] Really sharp!} Qd6 {[%emt 0:00:08]} 28. Rd2 {[%emt 0:04:44] Against Qd1} Qb6 {[%emt 0:01:07]} (28... Qe7 $142) 29. Rxd8 {[%emt 0:00:53]} Rxd8 {[%emt 0:00:11]} 30. Qe2 {[%emt 0:00:29]} Re8 {[%emt 0:01:25]} 31. Rf4 {[%emt 0:02:34]} Qc6 {[%emt 0:04:07]} 32. e5 {[%emt 0:00:14] Against Bd6} Bd6 {[%emt 0:04:44]} 33. Kg1 $2 {[%emt 0:00:11]} (33. Rc4 $1 $18 {[%cal Rc4c6] and the rest is easy.} Qb6 34. Qd2) 33... Qc5 $16 {[%emt 0:01:22][%cal Rd6e5]} 34. e6 {[%emt 0:00:51]} Re7 $2 {[%emt 0:06:17]} (34... Rxe6 $1 $11 35. Qxe6 fxe6 36. Bxe6+ Kh7 37. Rh4+ Bh5 $1 38. Rxh5+ Kg6 39. Bf7+ Kxf7 40. g6+ Kxg6 41. Rxc5 Bxc5) 35. exf7+ {[%emt 0:01:03]} Bxf7 {[%emt 0:00:05]} 36. Bxf7+ {[%emt 0:00:14]} Kf8 {[%emt 0:00:06]} 37. Re4 {[%emt 0:01:04]} Kxf7 {[%emt 0:00:17]} (37... Rxe4 $16 38. Qxe4 Kxf7 39. Qxb7 (39. g6+ Kf6 $14) 39... Qf5) 38. Rxe7+ $18 {[%emt 0:01:07]} Bxe7 $16 {[%emt 0:00:05][%mdl 4096] Endgame [#] KQB-KQN} 39. Ne5+ $1 {[%emt 0:00:32]} Ke8 {[%emt 0:00:58]} 40. g6 $2 {[%emt 0:00:40]} ({Weaker is} 40. Qh5+ Kd8 41. Qh8+ Bf8 $18) (40. Qe4 $18 {And now Qg6+ would win.} Qd6 41. Qf5 Qd1+ 42. Kg2) 40... Kd8 {[%emt 0:01:54]} (40... Qd5 $1 $14) 41. Qd3+ {[%emt 0:30:14]} (41. Qe4 $18 {Hoping for Qf5.} Bd6 42. Nc4) 41... Kc8 $2 {[%emt 0:30:05][%mdl 8192]} (41... Bd6 $16 42. Nc4 Ke7) 42. Qh3+ {[%emt 0:00:07] White mates.} Kb8 {[%emt 0:00:00]} 43. Nd7+ {[%emt 0:00:00]} Ka7 {[%emt 0:00:00]} 44. Nxc5 {[%emt 0:00:00] Weighted Error Value: White=0.30/Black=0.59} 1-0